bitfinex/quotes_BTCUSD_20250218
["timestamp","ask_amount","ask_price","bid_price","bid_amount"]
[1739883908244,1.300622,96417.0,96416.0,0.004]
[1739883909680,1.282878,96417.0,96416.0,0.004]
[1739883909853,1.163194,96417.0,96416.0,0.004]
[1739883911586,0.155574,96417.0,96416.0,0.004]
[1739883912639,0.09510768,96440.0,96416.0,0.10650365]
[1739883912847,0.15556,96426.0,96421.0,0.0471]
[1739883913100,0.09510768,96440.0,96422.0,0.10250365]
[1739883913302,0.09510768,96431.0,96423.0,0.0763]
[1739883913507,0.09510768,96431.0,96424.0,0.10250365]
[1739883913634,0.155559,96426.0,96425.0,0.02259037]
[1739883913832,0.155559,96426.0,96425.0,0.10250365]
[1739883914247,0.207404,96430.0,96423.0,0.0763]
[1739883914248,0.155562,96424.0,96423.0,0.0763]
[1739883914448,0.155562,96424.0,96423.0,0.10250365]
[1739883914667,0.30250168,96435.0,96415.0,0.3288406]
[1739883914668,0.207411,96427.0,96415.0,0.3288406]
[1739883914944,0.155575,96416.0,96415.0,0.37581143]
[1739883915148,0.155575,96416.0,96415.0,0.04731143]
[1739883915563,0.155575,96416.0,96415.0,0.0003406]
[1739883915974,0.207432,96418.0,96415.0,0.0003406]
[1739883916188,0.155575,96416.0,96415.0,0.0003406]
[1739883917160,0.155575,96416.0,96415.0,0.0023406]
[1739883917541,0.155575,96416.0,96415.0,0.0003406]
[1739883917743,0.155575,96416.0,96415.0,0.01668821]
[1739883919096,0.09527798,96425.0,96415.0,0.11919186]
[1739883919314,0.0001703,96425.0,96416.0,0.10354076]
[1739883919715,0.0001703,96425.0,96416.0,0.43204076]
[1739883920340,0.0001703,96425.0,96417.0,0.155574]
[1739883920341,0.155562,96424.0,96417.0,0.155574]
[1739883920575,0.155562,96424.0,96418.0,0.19590857]
[1739883920906,0.0001703,96425.0,96418.0,0.19590857]
[1739883921107,0.155569,96420.0,96418.0,0.19590857]
[1739883921573,0.155568,96421.0,96418.0,0.19590857]
[1739883921791,0.0001703,96425.0,96418.0,0.19590857]
[1739883921994,0.155564,96423.0,96419.0,0.01334761]
[1739883922208,0.155564,96424.0,96420.0,0.10250365]
[1739883922778,0.0001703,96425.0,96420.0,0.10250365]
[1739883923409,0.155564,96424.0,96420.0,0.10250365]
[1739883923557,0.1557323,96425.0,96422.0,0.0794]
[1739883923763,0.1557323,96425.0,96423.0,0.10250365]
[1739883923963,0.0001703,96425.0,96423.0,0.10250365]
[1739883924185,0.1557313,96425.0,96423.0,0.10250365]
[1739883924397,0.155562,96424.0,96423.0,0.10250365]
[1739883924592,0.0001703,96425.0,96424.0,0.155562]
[1739883924794,0.0001703,96425.0,96424.0,0.32890268]
[1739883925045,0.0001703,96425.0,96424.0,0.32786565]
[1739883926237,0.0001703,96425.0,96424.0,0.41076565]
[1739883927455,0.1553123,96437.0,96425.0,0.023]
[1739883927659,0.1553123,96437.0,96430.0,0.155551]
[1739883927868,0.1553123,96437.0,96431.0,0.25805465]
[1739883928471,0.15554,96438.0,96431.0,0.10250365]
[1739883928681,0.155539,96439.0,96432.0,0.155549]
[1739883928878,0.155539,96439.0,96433.0,0.16895344]
[1739883929355,0.15554,96438.0,96433.0,0.16895344]
[1739883929909,0.23784218,96447.0,96433.0,0.16895344]
[1739883930112,0.14488481,96443.0,96433.0,0.10250365]
[1739883930494,0.155539,96439.0,96433.0,0.10250365]
[1739883931098,0.155539,96439.0,96433.0,0.25805065]
[1739883931645,0.155537,96440.0,96434.0,0.155546]
[1739883931847,0.155537,96440.0,96435.0,0.10250365]
[1739883932050,0.155538,96439.0,96436.0,0.04654497]
[1739883932203,0.155538,96439.0,96437.0,0.10250365]
[1739883932408,0.155536,96441.0,96437.0,0.10250365]
[1739883933197,0.155537,96440.0,96437.0,0.10250365]
[1739883933356,0.155537,96440.0,96438.0,0.03325243]
[1739883933559,0.155537,96440.0,96439.0,0.10250365]
[1739883933763,0.155535,96441.0,96439.0,0.10250365]
[1739883933972,0.155537,96440.0,96439.0,0.10250365]
[1739883936453,0.02482111,96447.0,96439.0,0.10250365]
[1739883936659,0.207373,96445.0,96440.0,0.01823011]
[1739883936989,0.155535,96441.0,96440.0,0.01823011]
[1739883937321,0.207373,96445.0,96440.0,0.01823011]
[1739883937547,0.155534,96442.0,96440.0,0.01823011]
[1739883938154,0.155535,96441.0,96440.0,0.01823011]
[1739883940807,0.155534,96442.0,96440.0,0.01823011]
[1739883941020,0.0001703,96441.0,96440.0,0.01823011]
[1739883941217,0.0001703,96441.0,96440.0,0.155537]
[1739883941419,0.0001703,96441.0,96439.0,0.10250365]
[1739883942550,0.1557053,96441.0,96439.0,0.10250365]
[1739883943157,0.0001703,96441.0,96439.0,0.10250365]
[1739883943349,0.1557053,96441.0,96439.0,0.10250365]
[1739883943855,0.0001703,96441.0,96439.0,0.10250365]
[1739883945468,0.155537,96440.0,96439.0,0.10250365]
[1739883945667,0.0001703,96441.0,96439.0,0.10250365]
[1739883946067,0.1557073,96441.0,96439.0,0.10250365]
[1739883946223,0.0001703,96441.0,96439.0,0.10250365]
[1739883946430,0.1557053,96441.0,96439.0,0.10250365]
[1739883946961,0.155537,96440.0,96439.0,0.10250365]
[1739883947172,0.0001703,96441.0,96439.0,0.10250365]
[1739883947547,0.155537,96440.0,96439.0,0.10250365]
[1739883948973,0.0001703,96441.0,96439.0,0.10250365]
[1739883949175,0.155537,96440.0,96439.0,0.10250365]
[1739883949375,0.155537,96440.0,96439.0,0.11278808]
[1739883953966,0.1557073,96440.0,96439.0,0.11278808]
[1739883961602,0.01922871,96449.0,96440.0,0.0795]
[1739883961810,0.01922871,96449.0,96439.0,0.46532499]
[1739883961811,0.0777,96490.0,96458.0,0.155508]
[1739883962006,0.09504468,96480.0,96458.0,0.44743398]
[1739883962205,0.01922304,96474.0,96458.0,0.44639745]
[1739883962365,0.155476,96478.0,96458.0,0.44639745]
[1739883962570,0.09504468,96480.0,96458.0,0.44639745]
[1739883962979,0.01944567,96474.0,96458.0,0.44639745]
[1739883963173,0.22675667,96474.0,96458.0,0.44639745]
[1739883963381,0.207338,96461.0,96458.0,0.29088945]
[1739883963578,0.09504468,96470.0,96458.0,0.26788945]
[1739883963776,0.1556682,96465.0,96458.0,0.44639745]
[1739883964050,0.0001702,96465.0,96458.0,0.44639745]
[1739883964929,0.0001702,96465.0,96458.0,0.44539745]
[1739883965765,0.0001702,96465.0,96458.0,0.44839745]
[1739883966548,0.155506,96460.0,96458.0,0.26988945]
[1739883966754,0.02440637,96459.0,96458.0,0.42539745]
[1739883966993,0.02440637,96459.0,96458.0,0.26988945]
[1739883967198,0.02457667,96459.0,96458.0,0.75389745]
[1739883967370,0.02457667,96459.0,96458.0,0.59838945]
[1739883967575,0.02457667,96459.0,96458.0,0.75389745]
[1739883967796,0.02457667,96459.0,96458.0,0.59838945]
[1739883968005,0.02457667,96459.0,96458.0,0.75389745]
[1739883968411,0.02457667,96459.0,96458.0,0.59838945]
[1739883968788,0.02457667,96459.0,96458.0,0.75389745]
[1739883969107,0.02457667,96459.0,96458.0,0.59838945]
[1739883969431,0.02457667,96459.0,96458.0,0.62579745]
[1739883969659,0.02457667,96459.0,96458.0,0.47028945]
[1739883970619,0.18008267,96459.0,96458.0,0.43400365]
[1739883971054,1.66107867,96459.0,96458.0,0.3315]
[1739883971271,1.67433567,96459.0,96458.0,0.3315]
[1739883971646,1.82433567,96459.0,96458.0,0.003]
[1739883971846,1.88333504,96459.0,96458.0,0.003]
[1739883977535,1.5971,96459.0,96458.0,0.003]
[1739883977758,4.217685,96459.0,96458.0,0.003]
[1739883977889,4.25057916,96459.0,96458.0,0.003]
[1739883978793,4.32577916,96459.0,96458.0,0.003]
[1739883978947,4.32594946,96459.0,96458.0,0.003]
[1739883980135,4.32594946,96459.0,96432.0,0.3285]
[1739883980136,0.155535,96441.0,96432.0,0.3285]
[1739883980337,1.31718,96441.0,96432.0,0.3285]
[1739883980531,1.46718,96441.0,96416.0,0.0494406]
[1739883980731,1.46718,96441.0,96416.0,0.0003406]
[1739883980732,0.15,96434.0,96416.0,0.0003406]
[1739883980959,0.155574,96417.0,96416.0,0.0003406]
[1739883981201,0.529836,96417.0,96416.0,0.00039515]
[1739883981400,1.391186,96417.0,96416.0,0.00039515]
[1739883981603,1.549483,96417.0,96416.0,0.00039515]
[1739883981771,1.699483,96417.0,96416.0,0.00039515]
[1739883982172,1.70918237,96417.0,96416.0,0.00039515]
[1739883982871,0.31477337,96417.0,96416.0,0.00039515]
[1739883983076,0.31477337,96417.0,96416.0,0.1028988]
[1739883983077,0.31527337,96417.0,96416.0,0.1028988]
[1739883983489,0.00969937,96417.0,96416.0,0.12881528]
[1739883983695,0.00969937,96417.0,96416.0,0.3344738]
[1739883984099,0.01069937,96417.0,96416.0,0.3344738]
[1739883984309,0.00969937,96417.0,96416.0,0.1788988]
[1739883984510,0.00969937,96417.0,96416.0,0.39392018]
[1739883984715,0.207404,96431.0,96416.0,0.39392018]
[1739883984716,0.16526237,96424.0,96416.0,0.23834518]
[1739883984865,0.00969937,96424.0,96417.0,0.10250365]
[1739883985089,0.00969937,96424.0,96423.0,0.224964]
[1739883985288,0.00969937,96424.0,96423.0,0.32746765]
[1739883985492,0.00969937,96424.0,96423.0,0.3744332]
[1739883985837,0.0001703,96459.0,96424.0,0.023]
[1739883986018,0.0001703,96459.0,96451.0,0.155517]
[1739883986019,0.1556783,96459.0,96451.0,0.155517]
[1739883986221,0.155515,96454.0,96452.0,0.11805535]
[1739883986439,0.2075123,96459.0,96452.0,0.11805535]
[1739883987176,0.0001703,96459.0,96454.0,0.155513]
[1739883987378,0.0001703,96459.0,96455.0,0.13669896]
[1739883987602,0.0001703,96459.0,96457.0,0.155509]
[1739883987815,0.0001703,96459.0,96458.0,0.10250365]
[1739883988904,0.1556763,96459.0,96458.0,0.10250365]
[1739883990137,0.155516,96453.0,96444.0,0.0821]
[1739883990353,0.155516,96453.0,96452.0,0.10250365]
[1739883992295,0.0001703,96459.0,96452.0,0.10250365]
[1739883992486,0.155514,96454.0,96453.0,0.10250365]
[1739883994942,0.155527,96446.0,96445.0,0.3285]
[1739883995170,0.0001703,96459.0,96445.0,0.43100365]
[1739883995476,0.149863,96458.0,96446.0,0.10250365]
[1739883995686,0.155521,96450.0,96446.0,0.10250365]
[1739883995879,0.0001703,96459.0,96446.0,0.10250365]
[1739883996156,0.0001703,96459.0,96447.0,0.06383817]
[1739883996157,0.15552,96451.0,96447.0,0.06383817]
[1739883996391,0.1501703,96459.0,96448.0,0.10250365]
[1739883996582,0.0001703,96459.0,96448.0,0.10250365]
[1739883997010,0.207344,96458.0,96448.0,0.10250365]
[1739883997251,0.0001703,96459.0,96449.0,0.18839639]
[1739883997478,0.155513,96455.0,96450.0,0.10250365]
[1739883997708,0.207344,96458.0,96450.0,0.10250365]
[1739883997910,0.0001703,96459.0,96450.0,0.10250365]
[1739883998125,0.155512,96456.0,96450.0,0.25802365]
[1739883998331,0.155514,96454.0,96451.0,0.06383817]
[1739883998540,0.0001703,96459.0,96452.0,0.10250365]
[1739883998743,0.155514,96454.0,96452.0,0.10250365]
[1739883999025,0.155516,96453.0,96452.0,0.10250365]
[1739884005297,0.155516,96453.0,96452.0,0.10450365]
[1739884005503,0.155516,96453.0,96452.0,0.13737804]
[1739884010426,0.155516,96453.0,96452.0,0.03487439]
[1739884011061,1.154824,96453.0,96452.0,0.03487439]
[1739884011291,1.005724,96453.0,96452.0,0.03487439]
[1739884012255,0.842605,96453.0,96452.0,0.03487439]
[1739884012494,0.593605,96453.0,96452.0,0.03487439]
[1739884014551,0.5937753,96453.0,96452.0,0.03487439]
[1739884015010,0.5937753,96453.0,96452.0,0.002]
[1739884017396,0.7437753,96453.0,96452.0,0.002]
[1739884017633,0.155561,96425.0,96424.0,0.0782406]
[1739884017871,0.155561,96425.0,96424.0,0.1807988]
[1739884018811,0.155561,96425.0,96424.0,0.12561868]
[1739884019027,0.17318327,96425.0,96424.0,0.12561868]
[1739884019228,0.17318327,96425.0,96424.0,0.1078988]
[1739884019747,0.17318327,96425.0,96424.0,0.00539515]
[1739884020230,0.35453627,96425.0,96424.0,0.00539515]
[1739884020487,2.04894627,96425.0,96424.0,0.00539515]
[1739884020720,1.95192327,96425.0,96424.0,0.00539515]
[1739884021209,1.82228327,96425.0,96424.0,0.00539515]
[1739884021445,1.55605527,96425.0,96424.0,0.00539515]
[1739884022159,1.36435227,96425.0,96424.0,0.00039515]
[1739884022374,0.17318327,96425.0,96424.0,0.00339515]
[1739884022578,1.88687147,96425.0,96424.0,0.00039515]
[1739884022777,1.96255947,96425.0,96424.0,0.00039515]
[1739884023029,1.71920347,96425.0,96424.0,0.00339515]
[1739884023225,0.77660747,96425.0,96424.0,0.00339515]
[1739884023842,0.78631743,96425.0,96424.0,0.00339515]
[1739884024044,0.93631743,96425.0,96424.0,0.00339515]
[1739884024460,0.35231343,96425.0,96424.0,0.00339515]
[1739884024656,2.14690143,96425.0,96424.0,0.00339515]
[1739884024866,0.54557243,96425.0,96424.0,0.00339515]
[1739884025069,2.03732343,96425.0,96424.0,0.00339515]
[1739884025273,0.50950243,96425.0,96424.0,0.00339515]
[1739884025496,2.03727643,96425.0,96424.0,0.00339515]
[1739884025702,2.12979343,96425.0,96424.0,0.00339515]
[1739884025916,1.78842143,96425.0,96424.0,0.00339515]
[1739884026331,2.48667343,96425.0,96424.0,0.00339515]
[1739884026539,2.45369543,96425.0,96424.0,0.00339515]
[1739884026994,2.101382,96425.0,96424.0,0.00339515]
[1739884027276,0.155561,96425.0,96424.0,0.00339515]
[1739884027470,2.859799,96425.0,96424.0,0.00339515]
[1739884028738,2.87776844,96425.0,96424.0,0.00339515]
[1739884028943,3.02776844,96425.0,96424.0,0.00339515]
[1739884029752,3.0606626,96425.0,96424.0,0.00339515]
[1739884029958,3.16316625,96425.0,96424.0,1.5e-07]
[1739884030178,0.53992825,96425.0,96424.0,1.5e-07]
[1739884031010,0.53992825,96425.0,96415.0,4e-05]
[1739884031011,0.305575,96416.0,96415.0,4e-05]
[1739884031336,10.15599565,96416.0,96415.0,0.00012639]
[1739884031467,9.55276965,96416.0,96415.0,0.00012639]
[1739884031672,9.49449981,96416.0,96415.0,0.00012639]
[1739884031890,7.64848365,96416.0,96415.0,0.00012639]
[1739884032796,7.03994865,96416.0,96415.0,0.00012639]
[1739884033766,0.305577,96415.0,96414.0,1e-08]
[1739884033973,10.42668681,96415.0,96414.0,1e-08]
[1739884034183,0.44097481,96415.0,96414.0,1e-08]
[1739884034426,0.40808065,96415.0,96414.0,1e-08]
[1739884034635,0.44097481,96415.0,96414.0,1e-08]
[1739884034842,0.40808065,96415.0,96414.0,1e-08]
[1739884035701,0.44097481,96415.0,96414.0,1e-08]
[1739884036350,0.44797481,96415.0,96414.0,0.00100001]
[1739884036559,0.41508065,96415.0,96414.0,0.00100001]
[1739884036764,7.23231265,96415.0,96414.0,0.00100001]
[1739884036968,7.20216365,96415.0,96414.0,0.00100001]
[1739884039807,7.22150611,96415.0,96414.0,0.00100001]
[1739884040043,7.23117791,96415.0,96414.0,0.00100001]
[1739884040855,7.21101191,96415.0,96414.0,0.00100001]
[1739884041772,7.04861565,96415.0,96414.0,0.00100001]
[1739884043717,7.04861565,96415.0,96414.0,1e-08]
[1739884043718,6.72123265,96415.0,96414.0,1e-08]
[1739884043923,0.31459281,96415.0,96414.0,1e-08]
[1739884044690,0.155587,96409.0,96408.0,6.1e-07]
[1739884044892,0.155587,96409.0,96408.0,5.518e-05]
[1739884044893,0.29098481,96409.0,96408.0,5.518e-05]
[1739884046006,0.44098481,96409.0,96408.0,5.518e-05]
[1739884046252,0.155627,96384.0,96383.0,0.0754]
[1739884046465,1.293328,96384.0,96383.0,0.07544539]
[1739884046674,1.033033,96384.0,96383.0,0.07544539]
[1739884047418,1.05237546,96384.0,96383.0,0.07544539]
[1739884047823,1.05137546,96384.0,96383.0,0.07544539]
[1739884048536,1.06104726,96384.0,96383.0,0.07844539]
[1739884049892,1.94331626,96384.0,96383.0,0.00304539]
[1739884050115,3.60762026,96384.0,96383.0,0.00304539]
[1739884050333,5.86089026,96384.0,96383.0,0.00304539]
[1739884050552,4.74204226,96384.0,96383.0,0.00286092]
[1739884050768,4.72314526,96384.0,96383.0,0.00286092]
[1739884051137,3.70760726,96384.0,96383.0,0.00286092]
[1739884051347,3.53625582,96384.0,96383.0,0.00286092]
[1739884051541,3.53625582,96384.0,96383.0,0.00320152]
[1739884052148,3.41941382,96384.0,96383.0,0.00320152]
[1739884052353,3.40974202,96384.0,96383.0,0.00320152]
[1739884058714,3.55974202,96384.0,96383.0,0.0003406]
[1739884058903,3.56074202,96384.0,96383.0,0.0003406]
[1739884059328,3.38755902,96384.0,96383.0,0.0003406]
[1739884059695,3.16278302,96384.0,96383.0,0.0003406]
[1739884059975,1.39627002,96384.0,96383.0,0.0003406]
[1739884060181,1.31140902,96384.0,96383.0,0.0003406]
[1739884061745,2.35022202,96384.0,96383.0,0.0003406]
[1739884062065,4.18166956,96384.0,96383.0,0.0003406]
[1739884062290,4.92073556,96384.0,96383.0,0.0003406]
[1739884062463,5.03874156,96384.0,96383.0,0.0003406]
[1739884063173,5.0484665,96384.0,96383.0,0.0003406]
[1739884063869,4.6822555,96384.0,96383.0,0.0003406]
[1739884064066,2.9058425,96384.0,96383.0,0.0003406]
[1739884064272,2.5662279,96384.0,96383.0,0.0003406]
[1739884064473,2.3959189,96384.0,96383.0,0.0003406]
[1739884065426,1.8671709,96384.0,96383.0,0.0003406]
[1739884066391,1.85744596,96384.0,96383.0,0.0003406]
[1739884068296,0.16097196,96384.0,96383.0,0.0003406]
[1739884069548,3.50746396,96384.0,96383.0,0.0003406]
[1739884069916,1.91416896,96384.0,96383.0,0.0003406]
[1739884070137,0.65583296,96384.0,96383.0,0.0003406]
[1739884073663,0.47660296,96384.0,96383.0,0.0003406]
[1739884073871,0.65761196,96384.0,96383.0,0.0003406]
[1739884074103,0.31297196,96384.0,96383.0,0.0003406]
[1739884074431,0.0031704,96384.0,96383.0,0.0003406]
[1739884074793,0.0031704,96384.0,96383.0,0.0818406]
[1739884074794,0.1587974,96384.0,96383.0,0.0818406]
[1739884076181,0.0031704,96384.0,96383.0,0.1304406]
[1739884076388,0.1587974,96384.0,96383.0,0.1304406]
[1739884077320,0.0031704,96384.0,96383.0,0.1304406]
[1739884077564,0.1587974,96384.0,96383.0,0.1304406]
[1739884080258,0.0031704,96384.0,96383.0,0.1304406]
[1739884080631,0.0031704,96384.0,96383.0,0.22715316]
[1739884080846,0.0031704,96384.0,96383.0,0.2860696]
[1739884081819,0.0031704,96384.0,96383.0,0.38857325]
[1739884082840,0.0031704,96384.0,96383.0,0.47155607]
[1739884086092,0.0011704,96384.0,96383.0,0.49455607]
[1739884086406,0.0011704,96384.0,96383.0,0.49855607]
[1739884087884,0.0011704,96384.0,96383.0,0.49655607]
[1739884088921,0.0001704,96384.0,96383.0,0.49455607]
[1739884089118,0.0001704,96384.0,96383.0,0.49955607]
[1739884089295,0.0001704,96384.0,96383.0,0.64955607]
[1739884089855,0.0001704,96384.0,96383.0,0.65455607]
[1739884093586,0.0001704,96384.0,96383.0,0.64955607]
[1739884093774,0.0001704,96384.0,96383.0,1.18835607]
[1739884093982,0.0001704,96384.0,96383.0,1.19335607]
[1739884094587,0.0001704,96384.0,96383.0,0.65455607]
[1739884095439,0.0001704,96384.0,96383.0,0.64955607]
[1739884095654,0.0001704,96384.0,96383.0,0.65655607]
[1739884095798,0.0001704,96384.0,96383.0,0.65155607]
[1739884096363,0.0001704,96384.0,96383.0,0.56857325]
[1739884097997,0.0001704,96384.0,96383.0,1.11437325]
[1739884101480,0.0001704,96384.0,96383.0,1.11587325]
[1739884102911,0.0001704,96384.0,96383.0,1.19885607]
[1739884103749,0.0001704,96384.0,96383.0,1.23885607]
[1739884103927,0.0001704,96384.0,96383.0,1.27093488]
[1739884104976,0.0001704,96384.0,96383.0,1.26393488]
[1739884105597,0.0001704,96384.0,96383.0,1.27093488]
[1739884108123,0.155556,96428.0,96401.0,0.1256]
[1739884108332,0.207403,96431.0,96421.0,0.155567]
[1739884108529,0.207403,96431.0,96422.0,0.10250365]
[1739884108530,0.15556,96426.0,96422.0,0.10250365]
[1739884108728,0.15556,96426.0,96423.0,0.04655037]
[1739884108931,0.15556,96426.0,96424.0,0.10250365]
[1739884109130,0.155561,96425.0,96424.0,0.10250365]
[1739884109515,0.1556923,96425.0,96424.0,0.10250365]
[1739884109916,0.0001313,96425.0,96424.0,0.12831132]
[1739884110142,0.0001313,96425.0,96424.0,0.10250365]
[1739884110579,0.1556923,96425.0,96424.0,0.10250365]
[1739884111212,0.0001313,96425.0,96424.0,0.10250365]
[1739884111416,0.1556923,96425.0,96424.0,0.10250365]
[1739884117096,0.1556923,96425.0,96424.0,0.10059365]
[1739884117296,0.1556923,96425.0,96424.0,0.12621032]
[1739884118317,0.1556923,96425.0,96424.0,0.10059365]
[1739884120739,0.0829,96424.0,96384.0,0.357503]
[1739884120942,0.14474746,96420.0,96402.0,0.10250365]
[1739884121150,0.14474746,96420.0,96403.0,0.01025037]
[1739884121348,0.155592,96406.0,96404.0,0.10250365]
[1739884121594,0.155593,96405.0,96404.0,0.10250365]
[1739884121773,0.155593,96405.0,96404.0,0.11377905]
[1739884122388,0.155593,96405.0,96404.0,0.10250365]
[1739884122589,0.14474746,96414.0,96384.0,0.0803]
[1739884122590,0.0796,96408.0,96384.0,0.0803]
[1739884122786,0.155607,96397.0,96385.0,0.10250365]
[1739884122941,0.155607,96397.0,96386.0,0.207499]
[1739884123174,0.0796,96408.0,96387.0,0.12550365]
[1739884123373,0.155593,96405.0,96404.0,0.004]
[1739884123784,0.155615,96392.0,96387.0,0.12550365]
[1739884123997,0.0796,96408.0,96387.0,0.10250365]
[1739884123998,0.155621,96388.0,96387.0,0.10250365]
[1739884124215,0.207471,96399.0,96387.0,0.10250365]
[1739884124631,0.155621,96388.0,96387.0,0.10250365]
[1739884125793,0.155621,96388.0,96387.0,0.10550365]
[1739884126001,0.155621,96388.0,96387.0,0.10950365]
[1739884126303,0.155621,96388.0,96387.0,0.10650365]
[1739884126726,0.155621,96388.0,96387.0,0.005]
[1739884126925,0.155621,96388.0,96387.0,0.008]
[1739884127130,0.155621,96388.0,96387.0,0.003]
[1739884127326,0.155621,96388.0,96387.0,0.006]
[1739884127950,1.449884,96388.0,96387.0,0.006]
[1739884128366,1.449884,96388.0,96387.0,0.003]
[1739884128564,1.045778,96388.0,96387.0,0.003]
[1739884128925,0.890157,96388.0,96387.0,0.002]
[1739884129132,0.155627,96384.0,96383.0,0.0018406]
[1739884129367,0.155627,96384.0,96383.0,0.00188443]
[1739884131654,0.155627,96384.0,96383.0,0.00488443]
[1739884135338,2.093281,96384.0,96383.0,0.00488443]
[1739884135531,2.0973,96384.0,96383.0,0.00488443]
[1739884136256,1.944198,96384.0,96383.0,0.00488443]
[1739884136590,1.824172,96384.0,96383.0,0.00488443]
[1739884136847,1.809174,96384.0,96383.0,0.00488443]
[1739884138068,1.809174,96384.0,96383.0,0.00288443]
[1739884139336,1.53537073,96384.0,96383.0,0.00288443]
[1739884139530,0.803139,96385.0,96383.0,0.00288443]
[1739884139697,0.155627,96384.0,96383.0,0.00288443]
[1739884139904,2.335925,96384.0,96383.0,0.00288443]
[1739884140099,2.341215,96384.0,96383.0,0.00288443]
[1739884141169,2.185588,96384.0,96382.0,18.99549636]
[1739884141354,0.305627,96384.0,96383.0,0.004]
[1739884141789,0.155629,96383.0,96382.0,18.99549636]
[1739884141975,0.709342,96383.0,96382.0,18.99549636]
[1739884142389,0.859342,96383.0,96382.0,18.99549636]
[1739884142788,1.162831,96383.0,96382.0,18.99549636]
[1739884143007,1.162831,96383.0,96382.0,18.99649636]
[1739884143409,0.305629,96383.0,96382.0,18.99649636]
[1739884143610,0.0807,96393.0,96382.0,18.99749636]
[1739884143810,0.155629,96383.0,96382.0,18.99749636]
[1739884144018,0.15,96398.0,96382.0,19.10000001]
[1739884144256,0.316931,96397.0,96382.0,19.10000001]
[1739884144435,0.15,96385.0,96382.0,19.10000001]
[1739884144842,0.155629,96383.0,96382.0,19.09900001]
[1739884145035,0.155629,96383.0,96382.0,18.99649636]
[1739884145557,0.155629,96383.0,96382.0,18.99549636]
[1739884146310,0.155629,96383.0,96382.0,18.99649636]
[1739884147114,0.83957,96383.0,96382.0,18.99649636]
[1739884147307,1.093653,96383.0,96382.0,18.99649636]
[1739884147506,1.377979,96383.0,96382.0,18.99649636]
[1739884148551,2.873353,96383.0,96382.0,18.99649636]
[1739884149673,2.305832,96383.0,96382.0,18.99649636]
[1739884149866,2.097679,96383.0,96382.0,18.99649636]
[1739884150042,1.000503,96383.0,96382.0,18.99649636]
[1739884150766,0.75273,96383.0,96382.0,18.99649636]
[1739884151628,1.038007,96383.0,96382.0,18.99649636]
[1739884151831,0.305629,96383.0,96382.0,18.99649636]
[1739884154942,0.305629,96383.0,96382.0,18.99749636]
[1739884158680,0.155629,96383.0,96382.0,18.99749636]
[1739884159108,0.15515371,96386.0,96382.0,18.99749636]
[1739884159272,0.155629,96383.0,96382.0,18.99749636]
[1739884160082,0.155629,96383.0,96382.0,18.99649636]
[1739884160721,0.0001703,96384.0,96382.0,18.99649636]
[1739884160945,0.0001703,96384.0,96383.0,0.0774]
[1739884162885,0.0001703,96384.0,96383.0,0.17990365]
[1739884165279,0.1557973,96384.0,96383.0,0.17990365]
[1739884166031,0.0001703,96384.0,96383.0,0.17990365]
[1739884166231,0.1557973,96384.0,96383.0,0.17990365]
[1739884167253,0.0001703,96384.0,96383.0,0.17990365]
[1739884167458,0.0001703,96384.0,96383.0,0.33553265]
[1739884167999,0.0001703,96384.0,96383.0,0.17990365]
[1739884170026,0.0001703,96384.0,96383.0,0.18090365]
[1739884170222,0.1557973,96384.0,96383.0,0.18090365]
[1739884170428,0.0001703,96384.0,96383.0,0.18190365]
[1739884171005,0.1557973,96384.0,96383.0,0.18190365]
[1739884171428,0.0001703,96384.0,96383.0,0.18190365]
[1739884171631,0.1557973,96384.0,96383.0,0.18190365]
[1739884172036,0.1557973,96384.0,96383.0,0.002]
[1739884172612,0.1557973,96384.0,96383.0,0.001]
[1739884173069,0.1577973,96384.0,96383.0,0.001]
[1739884173267,0.155629,96383.0,96382.0,18.99549636]
[1739884175109,0.156629,96383.0,96382.0,18.99549636]
[1739884175286,0.157629,96383.0,96382.0,18.99549636]
[1739884175489,0.156629,96383.0,96382.0,18.99549636]
[1739884176146,0.306629,96383.0,96382.0,18.99549636]
[1739884176347,1.881053,96383.0,96382.0,18.99549636]
[1739884176549,0.677136,96383.0,96382.0,18.99549636]
[1739884176752,0.306629,96383.0,96382.0,18.99549636]
[1739884177167,0.305629,96383.0,96382.0,18.99549636]
[1739884180002,0.306629,96383.0,96382.0,18.99549636]
[1739884180208,1.504457,96383.0,96382.0,18.99549636]
[1739884180513,1.308121,96383.0,96382.0,18.99549636]
[1739884181038,1.180731,96383.0,96382.0,18.99549636]
[1739884181727,1.179731,96383.0,96382.0,18.99549636]
[1739884182158,1.181731,96383.0,96382.0,18.99549636]
[1739884183122,0.83706,96383.0,96382.0,18.99549636]
[1739884184405,0.307629,96383.0,96382.0,18.99549636]
[1739884192711,1.185503,96383.0,96382.0,18.99549636]
[1739884192968,3.104641,96383.0,96382.0,18.99549636]
[1739884193170,2.820379,96383.0,96382.0,18.99549636]
[1739884193373,2.451717,96383.0,96382.0,18.99549636]
[1739884193578,2.027485,96383.0,96382.0,18.99549636]
[1739884193847,2.025485,96383.0,96382.0,18.99549636]
[1739884194052,2.027485,96383.0,96382.0,18.99549636]
[1739884194954,2.029485,96383.0,96382.0,18.99549636]
[1739884195329,1.053969,96383.0,96382.0,18.99549636]
[1739884195535,2.585518,96383.0,96382.0,18.99549636]
[1739884195730,2.587518,96383.0,96382.0,18.99549636]
[1739884199761,2.585518,96383.0,96382.0,18.99549636]
[1739884200196,2.587518,96383.0,96382.0,18.99549636]
[1739884204395,2.69002165,96383.0,96382.0,18.72583836]
[1739884204567,2.85350941,96383.0,96382.0,17.61175636]
[1739884205386,2.88567233,96383.0,96382.0,17.61175636]
[1739884206360,2.82062165,96383.0,96382.0,17.61175636]
[1739884207000,2.81862165,96383.0,96382.0,17.61175636]
[1739884207359,2.69302165,96383.0,96382.0,17.61175636]
[1739884207738,1.24297,96383.0,96382.0,17.61175636]
[1739884207914,1.156426,96383.0,96382.0,17.61175636]
[1739884210146,0.71104,96383.0,96382.0,17.61175636]
[1739884210405,2.795103,96383.0,96382.0,17.61175636]
[1739884210809,2.790103,96383.0,96382.0,17.61175636]
[1739884211113,2.795103,96383.0,96382.0,17.61175636]
[1739884211295,1.204914,96383.0,96382.0,17.61175636]
[1739884213976,0.470826,96383.0,96382.0,17.61175636]
[1739884214276,0.481079,96383.0,96382.0,17.61175636]
[1739884215406,0.968528,96383.0,96382.0,17.61175636]
[1739884215817,0.460428,96383.0,96382.0,17.61175636]
[1739884216748,0.578325,96383.0,96382.0,17.61175636]
[1739884223598,0.61048792,96383.0,96382.0,17.61175636]
[1739884224030,0.64337568,96383.0,96382.0,17.61175636]